Workbook

Sheet TITLE1
R1: JAC/PIK-35/23-VAR/VAR
R5: PID No. | Y5: FEDERAL PROJECT No.
R6: 107345 | Y6: NON-FEDERAL
R8: STATE JOB No. | Y8: CONSTRUCTION PROJECT No.
R9: 499593
S11: PROJECT DESCRIPTION CONCRETE BRIDGE DECK SEALING AT VARIOUS BRIDGES IN JACKSON AND PIKE COUNTIES ON U.S. 35 AND U.S. 23
S14: 2023 SPECIFICATIONS THE STANDARD SPECIFICATIONS OF THE STATE OF OHIO, DEPARTMENT OF TRANSPORTATION, INCLUDING SUPPLEMENTAL SPECIFICATIONS LISTED IN THE PLANS AND CHANGES LISTED IN THE PROPOSAL SHALL GOVERN THIS IMPROVEMENT.
B19: LATITUDE: N 39° 19' 29" | J19: LONGITUDE: W 82° 57' 47"
S20: LIMITED ACCESS THIS IMPROVEMENT IS ESPECIALLY DESIGNED FOR THROUGH TRAFFIC AND HAS BEEN DECLARED A LIMITED ACCESS HIGHWAY, OR FREEWAY, BY ACTION OF THE DIRECTOR IN ACCORDANCE WITH THE PROVISIONS OF SECTION 5511.02 OF THE OHIO REVISED CODE.
B21: EARTH DISTURBED AREA: | P21: N/A*
B22: PROJECT EARTH DISTURBED AREA: | P22: N/A*
B23: EST. CONTRACTOR EARTH DISTURBED AREA: | P23: N/A*
B24: NOTICE OF INTENT EARTH DISTURBED AREA: | P24: N/A*
B25: RAILROAD INVOLVEMENT: | P25: NONE
B26: *TYPE OF PROJECT: | L26: MAINTENANCE | S26: I HEREBY APPROVE THESE PLANS AND DECLARE THAT THE MAKING OF THIS IMPROVEMENT WILL NOT REQUIRE THE CLOSING OF THE HIGHWAY TO TRAFFIC AND THAT PROVISIONS FOR THE MAINTENANCE AND SAFETY OF TRAFFIC WILL BE AS SET FORTH IN THESE PLANS AND ESTIMATES.
B28: DESIGN DESIGNATION: | J28: (SEE SHEET 2)
B29: DESIGN EXCEPTION: | J29: NONE
R33: APPROVED:
V34: DISTRICT DEPUTY DIRECTOR
R36: DATE:
R38: APPROVED:
V39: DIRECTOR, DEPARTMENT OF TRANSPORTATION
R41: DATE:
B43: PLANS PREPARED BY:
B44: ODOT, DISTRICT 9 - P & E CHILLICOTHE, OH | K44: STANDARD CONSTRUCTION DRAWINGS | AC44: SUPPLEMENTAL SPECIFICATIONS
B46: ENGINEERS SEAL: | K46: MT-95.30 | N46: 2019-07-19 | AC46: 800-2023 | AF46: SEE PROPOSAL
K47: MT-98.10 | N47: 2020-01-17 | AC47: 821 | AF47: 2012-04-20
K48: MT-98.11 | N48: 2020-01-17 | AC48: 832 | AF48: 2022-07-15
K49: MT-98.20 | N49: 2019-04-19 | AC49: 921 | AF49: 2012-04-20
K50: MT-98.22 | N50: 2020-01-17
K51: MT-98.28 | N51: 2020-01-17 | AC51: SPECIAL PROVISIONS
K52: MT-105.10 | N52: 2020-01-17
AC53: NONE
B55: SIGN:
B57: DATE:

Sheet NOTES
A1: ITEM 512 - SEALING CONCRETE BRIDGE DECKS WITH HMWM RESIN, AS PER PLAN
A3: THIS ITEM SHALL CONSIST OF SEALING OPENED CRACKS AND CONSTRUCTION JOINTS ON THE BRIDGE DECK AND APPROACH SLABS WITH HMWM RESIN. PRIOR TO SEALING THE JOINTS AND CRACKS, THE ENGINEER SHALL MARK ALL AREAS TO BE SEALED. THE SEALING WIDTH SHALL BE A MINIMUM OF 1'-0" CENTERED ON THE OPENING.
A10: ITEM 512, SEALING OF CONCRETE BRIDGE DECKS WITH HMWM RESIN, AS PER PLAN SHALL BE ALLOWED TO CURE IN ACCORDANCE WITH CMS 512.04. THEN THE DECK SURFACE AND APPROACH SLABS MAY BE CLEANED AND TREATED WITH ITEM 512, SEALING CONCRETE BRIDGE DECKS WITH SRS (INCLUDING APPROACH SLABS) IN ACCORDANCE WITH CMS 512.05.
A17: PAYMENT FOR ALL LABOR, MATERIAL, AND EQUIPMENT REQUIRED TO PERFORM THE WORK OUTLINED ABOVE SHALL BE INCLUDED IN THE SQUARE YARD CONTRACT PRICE FOR ITEM 512, SEALING OF CONCRETE BRIDGE DECKS WITH HMWM RESIN, AS PER PLAN, UNLESS SEPERATELY ITEMIZED IN THE PLANS.
A23: DESIGN DESIGNATION | B23: US 35 | C23: US 23
A24: CURRENT ADT (2022) | B24: 16500 | C24: 18000
A25: DESIGN YEAR ADT(2042) | B25: 20000 | C25: 19000
A26: DESIGN HOURLY VOLUME (2042) | B26: 2400 | C26: 2200
A27: DIRECTIONAL DISTRIBUTION | B27: 0.545 | C27: 0.688
A28: TRUCKS (24 HOUR B&C) | B28: 0.33 | C28: 0.19
A29: DESIGN SPEED | B29: 60 MPH | C29: 60 MPH
A30: LEGAL SPEED | B30: 60 MPH | C30: 60 MPH
A31: DESIGN FUNCTIONAL CLASSIFICATION
A32: 02 OTHER FREEWAYS OR EXPRESSWAYS (RURAL)
A33: NHS PROJECT YES
A36: SPECIAL CONSTRUCTION REQUIREMENT
A37: THE CONTRACTOR SHALL PERFORM THE WORK IN THE
A38: FOLLOWING SEQUENCE:
A39: 1. REMOVE ALL FOREIGN MATERIAL.
A40: 2. APPLY HMWM RESIN.
A41: 3. APPLY SRS.
A44: LANE VALUE CONTRACT TABLE
A45: DESCRIPTION OF CRITICAL LANE/RAMP TO BE MAINTAINED | B45: DISINCENTIVE $ PER MINUTE PER LANE
A47: ALL LANES OF TRAFFIC AND RAMPS ON U.S. 35 FROM SLM 11.47 TO SLM 16.65 | B47: 50
A49: ALL LANES OF TRAFFIC ON U.S. 23 FROM SLM 0.92 TO SLM 10.87 | B49: 50
A53: UTILITIES
A54: THERE ARE NO EXISTING OVERHEAD OR UNDERGROUND UTILITIES SHOWN ON THIS PLAN. DUE TO THE NATURE OF THE WORK REQUIRED BY THIS PROJECT, NO UTILITY CONFLICTS ARE ANTICIPATED. HOWEVER, IT IS THE RESPONSIBILITY OF THE CONTRACTOR TO CONTACT OHIO 811 (OUPS) FOR FIELD MARKINGS TO IDENTIFY POTENTIAL UTILITY CONFLICTS.

Sheet NOTES (2)
A1: ITEM 614 - MAINTAINING TRAFFIC | D1: ITEM 614 - MAINTAINING TRAFFIC CONTINUED
A3: A MINIMUM OF ONE 10'-0" LANE OF TRAFFIC IN EACH DIRECTION ON U.S. 35 AND U.S. 23 SHALL BE MAINTAINED AT ALL TIMES BY USE OF THE EXISTING PAVEMENT. A MINIUMUM OF ONE 10'-0" LANE OF TRAFFIC ON ALL RAMPS AND ACCELERATION & DECELERATION LANES SHALL BE MAINTAINED AT ALL TIMES BY THE USE OF THE EXISTING PAVEMENT. WORK SHALL NOT BEGIN ON U.S. 23 UNTIL WORK ON PIK-23-3.53 (PID 114728) IS COMPLETE, UNLESS OTHERWISE APPROVED BY THE DISTRICT CONSTRUCTION ENGINEER. WORK IS ANTICIPATED TO BE COMPLETED BY 8/31/2023. | D3: THE CONTRACTOR SHALL ARRANGE FOR ALL MAINTENANCE OF TRAFFIC OPERATIONS SUCH THAT THERE WILL BE NO OBSTRUCTIONS TO THE CONTINUOUS FLOW OF TRAFFIC. A MINIMUM OF ONE LANE OF TRAFFIC SHALL BE MAINTAINED ON ALL COUNTY AND TOWNSHIP ROADS AND ALL INTERSECTIONS (INCLUDING DRIVEWAYS) AND CROSS-OVERS SHALL BE OPEN TO TRAFFIC AT ALL TIMES.
D11: BEFORE THE WORK BEGINS, THE CONTRACTOR SHALL SUBMIT TO THE ENGINEER THE NAME(S) AND TELEPHONE NUMBER(S) OF A PERSON OR PERSONS WHO CAN BE CONTACTED TWENTY-FOUR (24) HOURS PER DAY BY THE OHIO DEPARTMENT OF TRANSPORTATION AND ALL INTERESTED POLICE AGENCIES. THIS PERSON OR PERSONS SHALL BE RESPONSIBLE FOR PLACING OR REPLACING NECESSARY TRAFFIC CONTROL DEVICES IN ACCORDANCE WITH THE OHIO MANUAL OF UNIFORM TRAFFIC CONTROL DEVICES.
A13: LANE CLOSURES WILL BE LIMITED TO THREE CONSECUTIVE CALENDAR DAYS.
A16: LENGTH AND DURATION OF LANE CLOSURES AND RESTRICTIONS SHALL BE AT THE APPROVAL OF THE ENGINEER. IT IS THE INTENT TO MINIMIZE THE IMPACT TO THE TRAVELING PUBLIC. LANE CLOSURES OR RESTRICTIONS OVER SEGMENTS OF THE PROJECT IN WHICH NO WORK IS ANTICIPATED WITHIN A REASONABLE TIME FRAME, AS DETERMINED BY THE ENGINEER, SHALL NOT BE PERMITTED. THE LEVEL OF UTILIZATION OF MAINTENANCE OF TRAFFIC DEVICES SHALL BE COMMENSURATE WITH THE WORK IN PROGRESS.
D21: ALL WORK AND TRAFFIC CONTROL DEVICES SHALL BE IN ACCORDANCE WITH CMS 614 AND OTHER APPLICABLE PORTIONS OF THE SPECIFICATIONS, AS WELL AS THE OHIO MANUAL OF UNIFORM TRAFFIC CONTROL DEVICES.
A25: ALL TRAFFIC CONTROL SIGNS, DEVICES, AND OPERATIONS USED FOR THE TEMPORARY MAINTENANCE AND CONTROL SHALL AT ALL TIMES BE SUBJECT TO THE DIRECTION AND CONTROL OF THE ENGINEER IN RESPECT TO THEIR CONDITIONS, LOCATIONS, AND TIMES OF APPLICATION. VISIBLE SIGNS AND DEVICES SHALL CONSISTENTLY REFLECT THE CONDITIONS ACTUALLY EXISTING. INAPPROPRIATE SIGNS OR DEVICES SHALL BE REMOVED OR COVERED.
D26: PAYMENT FOR ALL LABOR, EQUIPMENT AND MATERIALS SHALL BE INCLUDED IN THE LUMP SUM CONTRACT PRICE FOR ITEM 614 MAINTAINING TRAFFIC UNLESS SEPERATELY ITEMIZED IN THE PLANS.
D31: NOTIFICATION OF TRAFFIC RESTRICTIONS
D32: THROUGHOUT THE DURATION OF THE PROJECT, THE CONTRACTOR SHALL NOTIFY THE PROJECT ENGINEER IN WRITING OF ALL TRAFFIC RESTRICTIONS AND UPCOMING MAINTENANCE OF TRAFFIC CHANGES. THE CONTRACTOR SHALL ENSURE THE WRITTEN NOTIFACTION IS SUBMITTED IN A TIMELY MANNER TO ALLOW THE PROJECT ENINGEER TO MEET THE REQUIRED TIME FRAMES SET FORTH IN THE TABLE BELOW TO INFORM THE SPECIAL HAULINCG PERMITS SECTION AND THE DISTRICT PUBLIC INFOMRATION OFFICE (PIO). THIS NOTIFICATION SHALL BE RECIEVED BY THE PROJECT ENGINEER PRIOR TO THE PHUSICAL SETUP OF ANY APPLICABLE SIGNS OR MESSAGE BOARDS.
A34: NO WORK SHALL BE PERFORMED AND ALL EXISTING LANES SHALL BE OPEN TO TRAFFIC (EXCEPT FOR THE LANE CLOSURES FOR THE BRIDGE WORK ZONES) DURING THE FOLLOWING DESIGNATED HOLIDAYS OR EVENTS:
A39: CHRISTMAS | B39: LABOR DAY
A40: NEW YEARS | B40: THANKSGIVING
A41: MEMORIAL DAY | B41: SPECIAL LOCAL EVENTS
A42: FOURTH OF JULY | B42: (OTHER HOILDAY OR EVENT)
A44: THE PERIOD OF TIME THAT THE LANES ARE TO BE OPEN DEPENDS ON THE DAY OF THE WEEK ON WHICH THE HOLIDAY OR EVENT FALLS. THE FOLLOWING SCHEDULE SHALL BE USED TO DETERMINE THIS PERIOD: | D44: INFORMATION SHOULD INCLUDE, BUT IS NOT LIMITED TO, ALL CONSTRUCTION ACTIVITIES THAT IMPAC OR INTERFERE WITH TRAFFIC AND SHALL LIST THE SPECIFIC LCOATION, TYPE OF WORK, ROAD STATUS, DATE AND TIME OF RESTRICTION, DURATION OF RESTRICTION, NUMBER OF LANES MAINTAINED, NUMBER OF LANES CLOSED, MINIMUM VERTICAL CLEARANCE, MINIMUM WIDTH OF DRIVEABLE PAVEMENT, DETOUR ROUTES, IF APPLICABLE, AND ANY OTHER INFORMATION REQURESTED BY THE PROJECT ENGINEER.
A48: DAY OF HOLIDAY OR EVENT | B48: TIME ALL LANES MUST BE OPEN TO TRAFFIC
A50: SUNDAY | B50: 12:00N FRIDAY THROUGH
B51: 6:00AM MONDAY
A52: MONDAY | B52: 12:00N FRIDAY THROUGH
B53: 6:00AM MONDAY
A54: TUESDAY | B54: 12:00N MONDAY THROUGH | D54: NOTIFICATION TIME TABLE
B55: 6:00AM MONDAY | D55: ITEM | E55: DURATION OF CLOSURE | F55: NOTICE REQ'D.
A56: WEDNESDAY | B56: 12:00N TUESDAY THROUGH | D56: RAMP AND ROAD CLOSURE | E56: >= 2 WEEKS | F56: 21 CALENDARDAYS
B57: 6:00AM MONDAY | E57: >12 HOURS & < 2 WEEKS | F57: 14 CALENDAR DAYS
A58: THURSDAY | B58: 12:00N WEDNESDAY THROUGH | E58: <= 2 WEEKS | F58: 4 BUSINESS DAYS
B59: 6:00AM FRIDAY
A60: THURSDAY | B60: 6:00AM WEDNESDAY THROUGH | D60: LANE CLOSURES AND RSTRICTIONS | E60: >= 2 WEEKS | F60: 14 CALENDAR DAYS
A61: (THANKSGIVING | B61: 6:00AM MONDAY | E61: < 2 WEEKS | F61: 5 BUSINESS DAYS
A62: ONLY)
A63: FRIDAY | B63: 12:00N THURSDAY THROUGH | D63: START OF CONSTRUCTION | F63: 14 CALENDAR DAYS
B64: 6:00AM MONDAY
A65: SATURDAY | B65: 12:00N FRIDAY THROUGH
B66: 6:00AM MONDAY | D66: ANY UNFORSEEN CONDITIONS NOT SPECIFIED IN THE PLANS REQUIRING TRAFFIC RESTRICTIONS SHALL ALSO BE REPORTED TO THE PROJECT ENGINEER USING THE NOTIFICATION TIME TABLE.
A68: NO EXTENSIONS OF TIME SHALL BE GRANTED FOR DELAYS IN MATERIAL DELIVERIES, UNLESS SUCH DELAYS ARE INDUSTRY-WIDE, OR FOR LABOR STRIKES, UNLESS SUCH STRIKES ARE AREA-WIDE.
D71: EXISTING SHOULDERS
D72: TRAFFIC SHALL NOT BE REQUIRED TO TRAVEL ALONG THE EXISTING SHOULDERS THAT HAVE RUMBLE STRIPS.
A73: SHOULD THE CONTRACTOR FAIL TO MEET ANY OF THESE REQUIREMENTS, THE CONTRACTOR SHALL BE ASSESSED A DISINCENTIVE PER THE LANE VALUE CONTRACT (PN 127).

Sheet NOTES (3)
A1: ITEM 614, LAW ENFORCEMENT OFFICER (WITH PATROL CAR) | D1: ITEM 614, LAW ENFORCEMENT OFFICER (WITH PATROL CAR) CONTINUED
A4: USE OF LAW ENFORCEMENT OFFICERS (LEOS) BY CONTRACTORS OTHER THAN THE USES SPECIFIED BELOW WILL NOT BE PERMITTED AT PROJECT COST. LEOS SHOULD NOT BE USED WHERE THE OMUTCD INTENDS THAT FLAGGERS BE USED. IN ADDITION TO THE REQUIREMENT OF C&MS 614 AND THE OMUTCD, A UNIFORMED LEO WITH AN OFFICIAL PATROL CAR (CAR WITH TOP-MOUNTED EMERGENCY FLASHING LIGHTS AND COMPLETE MARKINGS OF THE APPROPRIATE LAW ENFORCEMENT AGENCY) SHOULD BE PROVIDED FOR THE FOLLOWING TRAFFIC CONTROL TASKS AS APPROVED BY THE ENGINEER: FOR LANE CLOSURES: DURING INITIAL SET-UP PERIODS, TEAR DOWN PERIODS, SUBSTANTIAL SHIFTS OF A CLOSURE POINT OR WHEN NEW LANE CLOSURE ARRANGEMENTS ARE INITIATED FOR LONG-TERM LANE CLOSURES/SHIFTS (FOR THE FIRST AND LAST DAY OF MAJOR CHANGES IN TRAFFIC CONTROL SETUP). IN GENERAL, LEOS SHOULD BE POSITIONED IN ADVANCE OF AND ON THE SAME SIDE AS THE LANE RESTRICTION (OR AT THE POINT OF ROAD CLOSURE), AND TO MANUALLY CONTROL TRAFFIC MOVEMENTS THROUGH SIGNALIZED INTERSECTIONS IN WORK ZONES. LEOS SHOULD NOT FORGO THEIR TRAFFIC CONTROL RESPONSIBILITIES TO APPREHEND MOTORISTS FOR ROUTINE TRAFFIC VIOLATIONS. HOWEVER, IF A MOTORIST'S ACTIONS ARE CONSIDERED TO BE RECKLESS, THEN PURSUIT OF THE MOTORIST IS APPROPRIATE. THE LEOS WORK AT THE DIRECTION OF THE CONTRACTOR. THE CONTRACTOR IS RESPONSIBLE FOR SECURING THE SERVICES OF THE LEOS WITH THE APPROPRIATE AGENCIES AND COMMUNICATING THE INTENTIONS OF THE PLANS WITH RESPECT TO DUTIES OF THE LEOS. THE ENGINEER SHALL HAVE FINAL CONTROL OVER THE LEOS' DUTIES AND PLACEMENT, AND WILL RESOLVE ANY ISSUES THAT MAY ARISE BETWEEN THE TWO PARTIES. THE LEO SHALL REPORT IN TO THE CONTRACTOR PRIOR TO THE START OF THE SHIFT, IN ORDER TO RECEIVE INSTRUCTIONS REGARDING SPECIFIC WORK ASSIGNMENTS DURING HIS/HER SHIFT. THE LEO IS EXPECTED TO STAY AT THE PROJECT SITE FOR THE ENTIRE DURATION OF HIS/HER SHIFT. THE LEO SHALL REPORT TO THE CONTRACTOR AT THE END OF HIS/HER SHIFT. SHOULD IT BE NECESSARY TO LEAVE THE PROJECT SITE, THE LEO SHALL NOTIFY THE ENGINEER. THE CONTRACTOR SHALL PROVIDE THE LEO WITH A TWO-WAY COMMUNICATION DEVICE THAT SHALL BE RETURNED TO THE CONTRACTOR AT THE END OF HIS/HER SHIFT. LEOS (WITH PATROL CAR) REQUIRED BY THE TRAFFIC MAINTENANCE TASKS ABOVE SHALL BE PAID FOR ON A UNIT PRICE (HOURLY) BASIS UNDER ITEM 614, LAW ENFORCEMENT OFFICER (WITH PATROL CAR) FOR ASSISTANCE. THE FOLLOWING ESTIMATED QUANTITIES HAVE BEEN CARRIED TO THE GENERAL SUMMARY. | D4: ITEM 614, LAW ENFORCEMENT OFFICER WITH PATROL CAR FOR ASSISTANCE 40 HOURS THE HOURS PAID SHALL INCLUDE ANY MINIMUM SHOW-UP TIME REQUIRED BY THE LAW ENFORCEMENT AGENCY INVOLVED. ANY ADDITIONAL COSTS (ADMINISTRATIVE OR OTHERWISE) INCURRED BY THE CONTRACTOR TO OBTAIN THE SERVICES OF A LEO ARE INCLUDED WITH THE BID UNIT PRICE FOR ITEM 614, LAW ENFORCEMENT OFFICER WITH PATROL CAR

Sheet GEN SUM
A1: TO USE MACRO FOR PLACING ITEMS - CLICK THE BUTTON. IN THE DIALOG BOX, CLICK FILE THEN NAVIGATE TO I:\ODOTstd\V8istd\vba\data AND SELECT THE APPROPRIATE FILE (E = ENGLISH UNITS). CLICK 'OPEN'. THEN FROM THE DROP DOWN YOU CAN BEGIN SELECTING YOUR ITEMS. WARNING: BE SURE TO SELECT A CELL IN THE "ITEM" COLUMN PRIOR TO PLACING ANY ITEM FROM THE MACRO WINDOW. | | \/ | B1: The shape object InnerSheetBorder represents the drawing area of an 8.5"x11" ODOT General Summary sheet
B3: SHEET NUMBER | F3: PLAN SPLIT | I3: ITEM | J3: ITEM | K3: GRAND | L3: UNIT | M3: DESCRIPTION | N3: SEE SHEET NO
D5: 4 | E5: 6 | F5: 01/NFA/47 | J5: EXT | K5: TOTAL
M8: EROSION CONTROL
F9: 1000 | I9: 832 | J9: 30000 | K9: 1000 | L9: EACH | M9: EROSION CONTROL
M11: TRAFFIC CONTROL
E12: =STRUCTURES!P44 -> 2.88 | F12: =D12+E12 -> 2.88 | I12: 642 | J12: 00104 | K12: =D12+E12 -> 2.88 | L12: MILE | M12: EDGE LINE, 6", TYPE 1
E13: =STRUCTURES!R44 -> 1.25 | F13: =D13+E13 -> 1.25 | I13: 642 | J13: 00204 | K13: =D13+E13 -> 1.25 | L13: MILE | M13: LANE LINE, 6", TYPE 1
M15: STRUCTURE REPAIR
E16: 0 | M16: STRUCTURE JAC-35-1147B (SFN 4000293) GENERAL SUMMARY | N16: 6
M17: STRUCTURE JAC-35-1147D (SFN 4000358) GENERAL SUMMARY | N17: 6
M18: STRUCTURE JAC-35-1147L (SFN 4000315) GENERAL SUMMARY | N18: 6
M19: STRUCTURE JAC-35-1147R (SFN 4000323) GENERAL SUMMARY | N19: 6
M20: STRUCTURE JAC-35-1216L (SFN 4000374) GENERAL SUMMARY | N20: 6
M22: STRUCTURE JAC-35-1216R (SFN 4000382) GENERAL SUMMARY | N22: 6
M23: STRUCTURE JAC-35-1228L (SFN 4000404) GENERAL SUMMARY | N23: 6
M24: STRUCTURE JAC-35-1228R (SFN 4000412) GENERAL SUMMARY | N24: 6
M25: STRUCTURE JAC-35-1294L (SFN 4000463) GENERAL SUMMARY | N25: 6
A26: SHEET 1 | M26: STRUCTURE JAC-35-1294R (SFN 4000471) GENERAL SUMMARY | N26: 6
M28: STRUCTURE JAC-35-1365F (SFN 4000447) GENERAL SUMMARY | N28: 6
M29: STRUCTURE JAC-35-1365H (SFN 4000439) GENERAL SUMMARY | N29: 6
M30: STRUCTURE JAC-35-1365L (SFN 4000420) GENERAL SUMMARY | N30: 6
M31: STRUCTURE JAC-35-1365R (SFN 4000455) GENERAL SUMMARY | N31: 6
M32: STRUCTURE PIK-23-0092L (SFN 6600042) GENERAL SUMMARY | N32: 6
M34: STRUCTURE PIK-23-0092R (SFN 6600077) GENERAL SUMMARY | N34: 6
A35: CLICK HERE FOR THE ITEM MASTER VIA INTRANET | M35: STRUCTURE PIK-23-0977 (SFN 6600360) GENERAL SUMMARY | N35: 6
M36: STRUCTURE PIK-23-1034 (SFN 6600425) GENERAL SUMMARY | N36: 6
M37: STRUCTURE PIK-23-1087 (SFN 6600514) GENERAL SUMMARY | N37: 6
M39: MAINTENANCE OF TRAFFIC
D40: 40 | F40: 40 | I40: 614 | J40: 11110 | K40: 40 | L40: HOUR | M40: LAW ENFORCEMENT OFFICER WITH PATROL CAR FOR ASSISTANCE
M42: INCINDENTALS
F43: LUMP | I43: 614 | J43: 11000 | K43: LUMP | M43: MAINTAINING TRAFFIC
F44: LUMP | I44: 624 | J44: 10000 | K44: LUMP | M44: MOBILIZATION
B57: SHEET NUMBER | I57: ITEM | J57: ITEM | K57: GRAND | L57: UNIT | M57: DESCRIPTION | N57: SEE SHEET NO.
J59: EXT. | K59: TOTAL
K61: =SUM(B61:H61) -> 0
K62: 0
K63: 0
K64: 0
K65: 0
K66: 0
K67: 0
K68: 0
K69: 0
K70: 0
K71: 0
K72: 0
K73: 0
K74: 0
K75: 0
A76: SHEET 2 | K76: 0
K77: 0
K78: 0
K79: 0
K80: 0
K81: 0
K82: 0
A83: CLICK HERE FOR THE ITEM MASTER VIA INTRANET | K83: 0
K84: 0
K85: 0
K86: 0
K87: 0
K88: 0
K89: 0
K90: 0
K91: 0
K92: 0
K93: =SUM(B93:H93) -> 0
K94: 0
K95: 0
K96: 0
K97: 0
K98: 0
K99: 0
K100: 0
K101: 0
K102: 0
K103: 0
K104: 0
K105: 0
K106: 0
K107: 0
K108: 0
K109: 0

Sheet STRUCTURES
A1: BRIDGE NUMBER | B1: WIDTH (TOE/TOE OF PARAPETS) | C1: LENGTH (BRIDGE LIMITS) | D1: REAR APPROACH SLAB LENGTH | E1: FORWARD APPROACH SLAB LENGTH | F1: SPECIAL | H1: 512 | I1: 512 | J1: 512 | L1: 512 | M1: 516 | P1: 642 | R1: 642 | W1: 512 | X1: STRUCTURAL FILE NUMBER
F2: PATCHING CONCRETE BRIDGE DECK OVERLAY WITH MICRO-SILICA MODIFIED CONCRETE | H2: REMOVAL OF EXISTING COATINGS FROM CONCRETTE SURFACES | I2: TREATING OF CONCRETE BRIDGE DECKS WITH SRS (INCLUDING APPROACH SLABS) | J2: SEALING CONCRETE BRIDGE DECKS WITH HMWM RESIN, AS PER PLAN (ESTIMATED AT 10% OF SRS AREA) | L2: REMOVAL OF EXISTING PAVEMENT MARKINGS | M2: PREFORMED ELASTOMERIC COMPRESSION JOINT SEAL | P2: EDGE LINE, 6", TYPE 1 | R2: LANE LINE, 6", TYPE 1 | W2: REMOVAL OF EXISTING COATINGS FROM CONCRETTE SURFACES
P5: WHITE | Q5: YELLOW
B9: FT | C9: FT | D9: FT | E9: FT | F9: SQ YD | H9: SQ YD | I9: SQ YD | J9: SQ YD | L9: FT | M9: FT | P9: FT | Q9: FT | R9: FT | W9: SQ YD
A10: JAC-35-1147B | B10: 26.83 | C10: =ROUNDUP(342.5,0) -> 343 | D10: 25 | E10: 25 | H10: =ROUNDUP(+($C10+$D10+$E10)*0.75*0.222222222222222,0) -> 66 | I10: =ROUNDUP(((C10*B10)+((E10*B10)+(D10*B10)))/9,0) -> 1172 | J10: =ROUNDUP(I10*0.1,0) -> 118 | L10: =ROUNDUP(P10+Q10+R10,0) -> 786 | M10: 55 | P10: =+C10+D10+E10 -> 393 | Q10: =+C10+D10+E10 -> 393 | W10: =+(C10+D10+E10)*0.75*0.222222222222222 -> 65.5 | X10: 4000293
A11: JAC-35-1147D | B11: 26.83 | C11: =ROUNDUP(312.86,0) -> 313 | D11: 25 | E11: 25 | H11: =ROUNDUP(+($C11+$D11+$E11)*0.75*0.222222222222222,0) -> 61 | I11: =ROUNDUP(((C11*B11)+((E11*B11)+(D11*B11)))/9,0) -> 1083 | J11: =ROUNDUP(I11*0.1,0) -> 109 | L11: =ROUNDUP(P11+Q11+R11,0) -> 726 | M11: 54 | P11: =+C11+D11+E11 -> 363 | Q11: =+C11+D11+E11 -> 363 | W11: =+(C11+D11+E11)*0.75*0.222222222222222 -> 60.5 | X11: 4000358
A13: JAC-35-1147L | B13: 38.833 | C13: =ROUNDUP(328.88,0) -> 329 | H13: 55 | I13: 1420 | J13: 142 | L13: 987 | P13: =+C13+D13+E13 -> 329 | Q13: =+C13+D13+E13 -> 329 | R13: =+C13+D13+E13 -> 329 | W13: =+(C13+D13+E13)*0.75*0.222222222222222 -> 54.83333333 | X13: 4000315
A14: JAC-35-1147R | B14: 38.833 | C14: =ROUNDUP(328.88,0) -> 329 | H14: 55 | I14: 1420 | J14: 142 | L14: 987 | M14: 84 | P14: 329 | Q14: 329 | R14: 329 | W14: =+(C14+D14+E14)*0.75*0.222222222222222 -> 54.83333333 | X14: 4000323
A16: JAC-35-1216L | B16: 38.833 | C16: =ROUNDUP(235.8,0) -> 236 | H16: 40 | I16: 1019 | J16: 102 | L16: 708 | P16: 236 | Q16: 236 | R16: 236 | W16: =+(C16+D16+E16)*0.75*0.222222222222222 -> 39.33333333 | X16: 4000374
A17: JAC-35-1216R | B17: 38.833 | C17: =ROUNDUP(202.82,0) -> 203 | H17: 34 | I17: 876 | J17: 88 | L17: 609 | P17: 203 | Q17: 203 | R17: 203 | W17: =+(C17+D17+E17)*0.75*0.222222222222222 -> 33.83333333 | X17: 4000382
A19: JAC-35-1228L | B19: =38.833 -> 38.833 | C19: =ROUNDUP(196.74,0) -> 197 | H19: 33 | I19: 851 | J19: 86 | L19: 591 | M19: 40 | P19: 197 | Q19: 197 | R19: 197 | W19: =+(C19+D19+E19)*0.75*0.222222222222222 -> 32.83333333 | X19: 4000404 | AB19: 675 | AC19: R | AD19: 7101546 | AE19: 80 | AF19: 40 | AG19: 3197 | AH19: 0 | AI19: 0 | AJ19: 30 | AK19: 4.5 | AL19: 1.5 | AM19: Y | AN19: 20 | AO19: OLD TOWN RUN
A20: JAC-35-1228R | B20: 38.833 | C20: =ROUNDUP(196.74,0) -> 197 | H20: 33 | I20: 851 | J20: 86 | L20: 591 | M20: 80 | P20: 197 | Q20: 197 | R20: 197 | W20: =+(C20+D20+E20)*0.75*0.222222222222222 -> 32.83333333 | X20: 4000412 | AB20: 675 | AC20: L | AD20: 7101554 | AE20: 80 | AF20: 40 | AG20: 3197 | AH20: 0 | AI20: 0 | AJ20: 30 | AK20: 4.5 | AL20: 1.5 | AM20: Y | AN20: 20 | AO20: OLD TOWN RUN
AB21: 869 | AC21: R | AD21: 7101589 | AE21: 18 | AF21: 40 | AG21: 721 | AH21: 0 | AI21: 0 | AJ21: 4 | AK21: 4.5 | AL21: 1.5 | AM21: N | AN21: 0 | AO21: STREAM
A22: JAC-35-1294L | B22: =38.833 -> 38.833 | C22: =ROUNDUP(158.29,0) -> 159 | H22: 27 | I22: 687 | J22: 69 | L22: 477 | M22: 69 | P22: 159 | Q22: 159 | R22: 159 | W22: =+(C22+D22+E22)*0.75*0.222222222222222 -> 26.5 | X22: 4000463 | AB22: 869 | AC22: L | AD22: 7101600 | AE22: 18 | AF22: 40 | AG22: 721 | AH22: 0 | AI22: 0 | AJ22: 4 | AK22: 4.5 | AL22: 1.5 | AM22: N | AN22: 0 | AO22: STREAM
A23: JAC-35-1294R | B23: =38.833 -> 38.833 | C23: =ROUNDUP(158.29,0) -> 159 | H23: 27 | I23: 687 | J23: 69 | L23: 477 | M23: 74 | P23: 159 | Q23: 159 | R23: 159 | W23: =+(C23+D23+E23)*0.75*0.222222222222222 -> 26.5 | X23: 4000471 | AB23: 1472 | AC23: R | AD23: 7101724 | AE23: 167 | AF23: 42 | AG23: 7018 | AH23: 0 | AI23: 0 | AJ23: 30 | AK23: 3.5 | AL23: 1.5 | AM23: N | AN23: 0 | AO23: CO RD 550
AB24: 1472 | AC24: L | AD24: 7101732 | AE24: 167 | AF24: 51 | AG24: 8514 | AH24: 0 | AI24: 0 | AJ24: 30 | AK24: 3.5 | AL24: 1.5 | AM24: N | AN24: 0 | AO24: CO RD 550
A25: JAC-35-1365F | B25: 25 | C25: =ROUNDUP(92.5,0) -> 93 | D25: 25 | E25: 25 | I25: 398 | J25: 40 | L25: 286 | M25: 82 | P25: 143 | Q25: 143 | W25: =+(C25+D25+E25)*0.75*0.222222222222222 -> 23.83333333 | X25: 4000447 | AB25: 1663 | AC25: L | AD25: 7101740 | AE25: 127 | AF25: 42 | AG25: 5339 | AH25: 0 | AI25: 0 | AJ25: 37 | AK25: 3.5 | AL25: 1.5 | AM25: N | AN25: 0 | AO25: CO RD 550
A26: JAC-35-1365H | B26: 25 | C26: =ROUNDUP(72.34,0) -> 73 | D26: 25 | E26: 25 | I26: 342 | J26: 35 | L26: 246 | P26: 123 | Q26: 123 | X26: 4000439 | AB26: 1663 | AC26: R | AD26: 7101805 | AE26: 127 | AF26: 42 | AG26: 5339 | AH26: 0 | AI26: 0 | AJ26: 37 | AK26: 3.5 | AL26: 1.5 | AM26: N | AN26: 0 | AO26: CO RD 550
W27: =+(C27+D27+E27)*0.75*0.222222222222222 -> 0 | AB27: 1851 | AC27: L | AD27: 7101864 | AE27: 266 | AF27: 36.3 | AG27: 9645 | AH27: 0 | AI27: 0 | AJ27: 55 | AK27: 3.5 | AL27: 1.5 | AM27: N | AN27: 0 | AO27: SR 104
A28: JAC-35-1365L | B28: 40 | C28: =ROUNDUP(86.22,0) -> 87 | I28: 387 | J28: 39 | L28: 261 | M28: 100 | P28: 87 | Q28: 87 | R28: 87 | W28: =+(C28+D28+E28)*0.75*0.222222222222222 -> 14.5 | X28: 4000420
A29: JAC-35-1365R | B29: 40 | C29: =ROUNDUP(86.22,0) -> 87 | I29: 387 | J29: 39 | L29: 261 | P29: 87 | Q29: 87 | R29: 87 | X29: 4000455 | AB29: 1919 | AC29: L | AD29: 7101988 | AE29: 1181 | AF29: 36 | AG29: 42518 | AH29: 0 | AI29: 0 | AJ29: 20 | AK29: 2.5 | AL29: 1.5 | AM29: N | AN29: 0 | AO29: SCIOTO RIVER
W30: =+(C30+D30+E30)*0.75*0.222222222222222 -> 0 | AB30: 1919 | AC30: R | AD30: 7102011 | AE30: 1181 | AF30: 36 | AG30: 42518 | AH30: 0 | AI30: 0 | AJ30: 20 | AK30: 2.5 | AL30: 1.5 | AM30: N | AN30: 0 | AO30: SCIOTO RIVER
A31: PIK-23-0092L | B31: 44.5 | C31: 79.5 | D31: 15 | E31: 15 | H31: =ROUNDUP(+($C31+$D31+$E31)*0.75*0.222222222222222,0) -> 19 | I31: 542 | J31: 55 | L31: 329 | M31: 96 | P31: 109.5 | Q31: 109.5 | R31: 109.5 | W31: =+(C31+D31+E31)*0.75*0.222222222222222 -> 18.25 | X31: 6600042 | AB31: 1972 | AC31: L | AD31: 7102046 | AE31: 174 | AF31: 59 | AG31: 10269 | AH31: 0 | AI31: 0 | AJ31: 7 | AK31: 2.5 | AL31: 1.5 | AM31: N | AN31: 0 | AO31: SR 159 (BRIDGE ST)
A32: PIK-23-0092R | B32: 44.5 | C32: 79.5 | D32: 15 | E32: 15 | H32: 19 | I32: 542 | J32: 55 | L32: 329 | P32: 109.5 | Q32: 109.5 | R32: 109.5 | X32: 6600077 | AB32: 1972 | AC32: R | AD32: 7102070 | AE32: 174 | AF32: 42 | AG32: 7309 | AH32: 0 | AI32: 0 | AJ32: 7 | AK32: 2.5 | AL32: 1.5 | AM32: N | AN32: 0 | AO32: SR 159 (BRIDGE ST)
AB33: 2014 | AC33: L | AD33: 7102100 | AE33: 145 | AF33: 42 | AG33: 6092 | AH33: 0 | AI33: 0 | AJ33: 1 | AK33: 2.5 | AL33: 1.5 | AM33: Y | AN33: 25 | AO33: N&W RR
A34: PIK-23-0977 | B34: 89 | C34: 800 | D34: 15 | E34: 15 | H34: =ROUNDUP(+($C34+$D34+$E34)*0.75*0.222222222222222,0) -> 139 | I34: 8208 | J34: 821 | L34: 4980 | P34: =(+C34+D34+E34)*2 -> 1660 | Q34: =(+C34+D34+E34)*2 -> 1660 | R34: =(+C34+D34+E34)*2 -> 1660 | X34: 6600360 | AB34: 2014 | AC34: R | AD34: 7102135 | AE34: 145 | AF34: 42 | AG34: 6092 | AH34: 0 | AI34: 0 | AJ34: 1 | AK34: 2.5 | AL34: 1.5 | AM34: Y | AN34: 25 | AO34: N&W RR
AB35: 2042 | AC35: 0 | AD35: 7102194 | AE35: 233 | AF35: 37 | AG35: 8622 | AH35: 0 | AI35: 0 | AJ35: 59 | AK35: 2.5 | AL35: 1.5 | AM35: Y | AN35: 25 | AO35: S.B. US 23
A36: PIK-23-1034 | B36: 89 | C36: 859 | D36: 15 | E36: 15 | H36: =ROUNDUP(+($C36+$D36+$E36)*0.75*0.222222222222222,0) -> 149 | I36: 8792 | J36: 880 | L36: 5334 | M36: 116 | P36: =(+C36+D36+E36)*2 -> 1778 | Q36: =(+C36+D36+E36)*2 -> 1778 | R36: =(+C36+D36+E36)*2 -> 1778 | W36: =+(C36+D36+E36)*0.75*0.222222222222222 -> 148.1666667 | X36: 6600425 | AB36: 2419 | AC36: L | AD36: 7102259 | AE36: 1286 | AF36: 36 | AG36: 46296 | AH36: 0 | AI36: 0 | AJ36: 0 | AK36: 2 | AL36: 1.5 | AM36: Y | AN36: 25 | AO36: SCIOTO RIVER
W37: =+(C37+D37+E37)*0.75*0.222222222222222 -> 0
A38: PIK-23-1087 | B38: 89 | C38: 440 | D38: 15 | E38: 15 | H38: =ROUNDUP(+($C38+$D38+$E38)*0.75*0.222222222222222,0) -> 79 | I38: 4648 | J38: 465 | L38: 2820 | P38: =(+C38+D38+E38)*2 -> 940 | Q38: =(+C38+D38+E38)*2 -> 940 | R38: =(+C38+D38+E38)*2 -> 940 | X38: 6600514 | AB38: 2419 | AC38: R | AD38: 7102291 | AE38: 1280.3 | AF38: 39 | AG38: 49934 | AH38: 0 | AI38: 0 | AJ38: 10 | AK38: 1 | AL38: 1.5 | AM38: Y | AN38: 25 | AO38: SCIOTO RIVER
AB39: 2604 | AC39: R | AD39: 7102410 | AE39: 79.6 | AF39: 45 | AG39: 3584 | AH39: 0 | AI39: 0 | AJ39: 20 | AK39: 1 | AL39: 1.5 | AM39: Y | AN39: 25 | AO39: DRY RUN
A42: TOTAL | F42: =SUM(F14:F40) -> 0 | H42: =+SUM(H10:H41) -> 836 | I42: =+SUM(I10:I41) -> 34312 | J42: =+SUM(J10:J41) -> 3440 | L42: =SUM(L10:L38) -> 21785 | M42: =+SUM(M10:M41) -> 850 | P42: =+SUM(P10:Q40) -> 15204 | R42: =+SUM(R10:R41) -> 6580 | W42: =SUM(W10:W41) -> 632.25 | AB42: 3343 | AC42: R | AD42: 7102623 | AE42: 150.7 | AF42: 45 | AG42: 6781 | AH42: 0 | AI42: 0 | AJ42: 9 | AK42: 1 | AL42: 1.5 | AM42: Y | AN42: 25 | AO42: JACKSON SHORT LINE R.R.
A43: CONVERT TO MILES | P43: =+P42/5280 -> 2.879545455 | R43: =+R42/5280 -> 1.246212121 | AB43: 3402 | AC43: 0 | AD43: 7102607 | AE43: 222 | AF43: 39 | AG43: 8654 | AH43: 0 | AI43: 0 | AJ43: 0 | AK43: 1 | AL43: 1.5 | AM43: Y | AN43: 25 | AO43: VIGO ROAD (CR 207)
A44: TOTALS CARRIED TO GENERAL SUMMARY | F44: =F42 -> 0 | H44: =+ROUNDUP(H42,0) -> 836 | I44: =+ROUNDUP(I42,0) -> 34312 | J44: =+ROUNDUP(J42,0) -> 3440 | L44: =L42 -> 21785 | M44: =+ROUNDUP(M42,0) -> 850 | P44: =+ROUNDUP(P43,2) -> 2.88 | R44: =+ROUNDUP(R43,2) -> 1.25 | W44: =+ROUNDUP(W42,0) -> 633 | AB44: 3418 | AC44: L | AD44: 7102666 | AE44: 283 | AF44: 55.8 | AG44: 15780 | AH44: 0 | AI44: 0 | AJ44: 20 | AK44: 1 | AL44: 1.5 | AM44: Y | AN44: 25 | AO44: SALT CREEK
